[Event "FIDE Chesscom Grand Swiss 2019"]
[Site "Douglas-Isle of Man"]
[Date "2019.10.13"]
[Round "4.17"]
[White "Sebag, Marie"]
[Black "Abasov, Nijat"]
[Result "0-1"]
[ECO "B15"]
[WhiteElo "2445"]
[BlackElo "2632"]
[Annotator "RC"]
[PlyCount "90"]
[EventDate "2019.10.10"]
[EventType "swiss"]
[EventCountry "GBR"]
[SourceTitle "playchess.com"]
[Source "ChessBase"]
[SourceQuality "1"]
[TimeControl "40/6000+30:20/3000+30:900+30"]

1. e4 {[%emt 0:00:00]} g6 {[%emt 0:00:00]} 2. d4 {[%emt 0:00:33]} Bg7 {[%emt 0:00:01]} 3. Nc3 {[%emt 0:02:45]} c6 {[%emt 0:00:15]} 4. Nf3 {[%emt 0:04:24]} d5 {[%emt 0:00:33]} 5. h3 {[%emt 0:01:37]} dxe4 {[%emt 0:00:34]} 6. Nxe4 {[%emt 0:00:34]} Nf6 {[%emt 0:00:12]} 7. Nxf6+ {[%emt 0:34:10]} exf6 {[%emt 0:00:20]} 8. Bc4 {[%emt 0:00:13]} O-O {[%emt 0:00:09]} 9. O-O {[%emt 0:00:06]} a5 {[%emt 0:00:05]} 10. a3 {[%emt 0:05:41]} Na6 {[%emt 0:01:13]} 11. Be3 {[%emt 0:04:36]} Nc7 {[%emt 0:00:58]} 12. Qd2 {[%emt 0:00:44]} b5 {[%emt 0:09:01]} 13. Ba2 {[%emt 0:07:28]} Be6 {[%emt 0:03:17]} 14. Bxe6 {[%emt 0:01:16]} Nxe6 {[%emt 0:00:08]} 15. a4 {[%emt 0:00:16]} b4 {[%emt 0:00:58]} 16. c4 {[%emt 0:06:29]} bxc3 {[%emt 0:00:36]} 17. bxc3 {[%emt 0:00:48]} Qd5 {[%emt 0:00:41]} 18. Bh6 {[%emt 0:00:40]} Rfd8 {[%emt 0:03:00]} 19. Bxg7 {[%emt 0:00:53]} Kxg7 {[%emt 0:00:08]} 20. Rfe1 {[%emt 0:06:40]} Rab8 {[%emt 0:04:44]} 21. Qe3 {[%emt 0:05:14]} Rb2 {[%emt 0:02:10]} 22. Re2 {[%emt 0:00:47]} Rdb8 {[%emt 0:02:47]} 23. Rxb2 {[%emt 0:03:41]} Rxb2 {[%emt 0:00:12]} 24. Qc1 {[%emt 0:00:25]} Re2 {[%emt 0:02:29]} 25. c4 {[%emt 0:08:41]} Qe4 {[%emt 0:01:16]} 26. Qc3 {[%emt 0:00:31]} h5 {[%emt 0:24:59]} 27. Re1 {[%emt 0:05:53]} Nxd4 {[%emt 0:00:40]} 28. Rd1 {[%emt 0:02:08]} Nxf3+ {[%emt 0:01:17]} 29. Qxf3 {[%emt 0:00:08]} Qxc4 {[%emt 0:01:29]} 30. g3 {[%emt 0:02:08]} Re6 {[%emt 0:00:58]} 31. Qa3 {[%emt 0:00:35]} c5 {[%emt 0:02:01]} 32. Rb1 {[%emt 0:03:00]} Re2 {[%emt 0:00:59]} 33. Qf3 {[%emt 0:01:07]} Rb2 {[%emt 0:03:06]} 34. Rd1 {[%emt 0:01:03]} Qxa4 {[%emt 0:01:23]} 35. Rd8 {[%emt 0:00:47]} Qa1+ {[%emt 0:01:21]} 36. Kg2 {[%emt 0:00:32]} Qe1 {[%emt 0:00:12]} 37. Rd6 {[%emt 0:00:44]} f5 {[%emt 0:00:19]} 38. Rd1 {[%emt 0:00:28]} Rxf2+ {[%emt 0:01:27]} 39. Qxf2 {[%emt 0:00:08]} Qxd1 {[%emt 0:00:07]} 40. Qxc5 {[%emt 0:00:17]} Qa1 {[%emt 0:00:06]} 41. g4 {[%emt 0:51:11]} fxg4 {[%emt 0:50:18]} 42. hxg4 {[%emt 0:00:03]} hxg4 {[%emt 0:00:10]} 43. Kg3 {[%emt 0:00:02]} a4 {[%emt 0:00:30]} 44. Kxg4 {[%emt 0:00:04]} a3 {[%emt 0:00:15]} 45. Kg5 {[%emt 0:00:06]} Qf6+ {[%emt 0:00:08]} 0-1

[Event "FIDE Chesscom Grand Swiss 2019"]
[Site "Douglas-Isle of Man"]
[Date "2019.10.13"]
[Round "4.21"]
[White "Sjugirov, Sanan"]
[Black "Henderson de La Fuente, Lance"]
[Result "1-0"]
[ECO "E18"]
[WhiteElo "2662"]
[BlackElo "2494"]
[Annotator "RC"]
[PlyCount "107"]
[EventDate "2019.10.10"]
[EventType "swiss"]
[EventCountry "GBR"]
[SourceTitle "playchess.com"]
[Source "ChessBase"]
[SourceQuality "1"]
[TimeControl "40/6000+30:20/3000+30:900+30"]

1. d4 {[%emt 0:00:00]} Nf6 {[%emt 0:00:00]} 2. c4 {[%emt 0:00:00]} e6 {[%emt 0:00:00]} 3. Nf3 {[%emt 0:00:19]} b6 {[%emt 0:00:23]} 4. g3 {[%emt 0:00:44]} Bb7 {[%emt 0:00:15]} 5. Bg2 {[%emt 0:00:09]} Be7 {[%emt 0:00:08]} 6. O-O {[%emt 0:00:30]} O-O {[%emt 0:00:19]} 7. Nc3 {[%emt 0:00:32]} Ne4 {[%emt 0:00:36]} 8. Bd2 {[%emt 0:00:09]} Bf6 {[%emt 0:00:18]} 9. Re1 {[%emt 0:08:30]} c5 {[%emt 0:01:58]} 10. d5 {[%emt 0:01:00]} Nxc3 {[%emt 0:02:45]} 11. Bxc3 {[%emt 0:00:56]} Bxc3 {[%emt 0:02:41]} 12. bxc3 {[%emt 0:00:05]} exd5 {[%emt 0:00:47]} 13. cxd5 {[%emt 0:01:24]} d6 {[%emt 0:00:19]} 14. e4 {[%emt 0:01:05]} Nd7 {[%emt 0:00:22]} 15. e5 {[%emt 0:09:22]} dxe5 {[%emt 0:03:02]} 16. Nxe5 {[%emt 0:00:12]} Nxe5 {[%emt 0:00:15]} 17. Rxe5 {[%emt 0:00:05]} Re8 {[%emt 0:00:58]} 18. Qe2 {[%emt 0:03:56]} Rxe5 {[%emt 0:09:39]} 19. Qxe5 {[%emt 0:00:05]} Qd7 {[%emt 0:00:43]} 20. Re1 {[%emt 0:00:50]} h6 {[%emt 0:00:40]} 21. Qe7 {[%emt 0:03:47]} Rd8 {[%emt 0:01:43]} 22. c4 {[%emt 0:01:11]} Ba6 {[%emt 0:05:59]} 23. Qxd7 {[%emt 0:19:16]} Rxd7 {[%emt 0:01:06]} 24. Re8+ {[%emt 0:00:10]} Kh7 {[%emt 0:00:05]} 25. Bh3 {[%emt 0:00:49]} Rd6 {[%emt 0:00:08]} 26. Bf1 {[%emt 0:00:38]} Rd7 {[%emt 0:00:46]} 27. a4 {[%emt 0:03:32]} Kg6 {[%emt 0:00:25]} 28. f4 {[%emt 0:14:26]} Kf6 {[%emt 0:00:20]} 29. g4 {[%emt 0:01:13]} g5 {[%emt 0:05:05]} 30. h4 {[%emt 0:00:20]} gxh4 {[%emt 0:08:03]} 31. Kh2 {[%emt 0:03:01]} Bb7 {[%emt 0:01:31]} 32. Kh3 {[%emt 0:04:37]} Bxd5 {[%emt 0:03:50]} 33. cxd5 {[%emt 0:00:37]} Rxd5 {[%emt 0:00:05]} 34. Re4 {[%emt 0:16:12]} Rd1 {[%emt 0:00:58]} 35. Bc4 {[%emt 0:01:52]} Rh1+ {[%emt 0:00:23]} 36. Kg2 {[%emt 0:00:05]} Ra1 {[%emt 0:01:25]} 37. Re5 {[%emt 0:07:36]} Kg6 {[%emt 0:06:42]} 38. Bb5 {[%emt 0:01:41]} Ra3 {[%emt 0:00:42]} 39. Kh2 {[%emt 0:07:01]} Rg3 {[%emt 0:07:08]} 40. Be2 {[%emt 0:01:24]} Ra3 {[%emt 0:00:34]} 41. Bb5 {[%emt 0:50:08]} Rg3 {[%emt 0:50:13]} 42. Bd7 {[%emt 0:00:00]} Rf3 {[%emt 0:00:00]} 43. Rf5 {[%emt 0:00:00]} f6 {[%emt 0:00:00]} 44. Be8+ {[%emt 0:00:00]} Kg7 {[%emt 0:00:00]} 45. Bc6 {[%emt 0:00:00]} Rg3 {[%emt 0:00:00]} 46. Rd5 {[%emt 0:00:00]} Rxg4 {[%emt 0:00:00]} 47. f5 {[%emt 0:00:00]} c4 {[%emt 0:00:00]} 48. Rd7+ {[%emt 0:00:00]} Kf8 {[%emt 0:00:00]} 49. Rxa7 {[%emt 0:00:00]} Rf4 {[%emt 0:00:41]} 50. Bb5 {[%emt 0:00:00]} Rxf5 {[%emt 0:01:43]} 51. Bxc4 {[%emt 0:00:00]} Rc5 {[%emt 0:09:24]} 52. Bb5 {[%emt 0:00:00]} Rd5 {[%emt 0:00:13]} 53. Kh3 {[%emt 0:00:00]} Rd6 {[%emt 0:00:24]} 54. Kxh4 {[%emt 0:00:00]} 1-0

[Event "FIDE Chesscom Grand Swiss 2019"]
[Site "Douglas-Isle of Man"]
[Date "2019.10.13"]
[Round "4.23"]
[White "Stefanova, Antoaneta"]
[Black "Zhang, Zhong"]
[Result "0-1"]
[ECO "D04"]
[WhiteElo "2479"]
[BlackElo "2636"]
[Annotator "RC"]
[PlyCount "112"]
[EventDate "2019.10.10"]
[EventType "swiss"]
[EventCountry "GBR"]
[SourceTitle "playchess.com"]
[Source "ChessBase"]
[SourceQuality "1"]
[TimeControl "40/6000+30:20/3000+30:900+30"]

1. d4 {[%emt 0:00:00]} d5 {[%emt 0:00:00]} 2. Nf3 {[%emt 0:00:57]} Nf6 {[%emt 0:00:29]} 3. e3 {[%emt 0:00:26]} c5 {[%emt 0:00:53]} 4. Nbd2 {[%emt 0:03:54]} cxd4 {[%emt 0:02:01]} 5. exd4 {[%emt 0:00:04]} Nc6 {[%emt 0:00:09]} 6. c3 {[%emt 0:05:24]} Qc7 {[%emt 0:00:50]} 7. Bd3 {[%emt 0:01:22]} Bg4 {[%emt 0:00:22]} 8. Nf1 {[%emt 0:15:02]} e6 {[%emt 0:07:23]} 9. Bg5 {[%emt 0:01:08]} Ne4 {[%emt 0:06:38]} 10. Be3 {[%emt 0:00:13]} f5 {[%emt 0:03:08]} 11. h3 {[%emt 0:03:44]} Bh5 {[%emt 0:04:22]} 12. g4 {[%emt 0:03:45]} Bf7 {[%emt 0:04:20]} 13. Ne5 {[%emt 0:06:03]} Bd6 {[%emt 0:08:58]} 14. f4 {[%emt 0:34:26]} O-O {[%emt 0:09:50]} 15. h4 {[%emt 0:04:51]} Na5 {[%emt 0:27:39]} 16. Nd2 {[%emt 0:05:46]} b5 {[%emt 0:04:14]} 17. Rc1 {[%emt 0:02:46]} Nc4 {[%emt 0:03:32]} 18. Bxc4 {[%emt 0:01:56]} bxc4 {[%emt 0:00:39]} 19. Nxe4 {[%emt 0:01:55]} dxe4 {[%emt 0:04:02]} 20. Rc2 {[%emt 0:00:25]} Rad8 {[%emt 0:00:48]} 21. O-O {[%emt 0:01:21]} Be8 {[%emt 0:01:29]} 22. Rg2 {[%emt 0:02:02]} Bc6 {[%emt 0:02:38]} 23. gxf5 {[%emt 0:07:50]} Rxf5 {[%emt 0:02:55]} 24. Kh2 {[%emt 0:01:30]} Bxe5 {[%emt 0:01:23]} 25. fxe5 {[%emt 0:00:07]} Rf3 {[%emt 0:00:20]} 26. Bh6 {[%emt 0:02:17]} g6 {[%emt 0:02:34]} 27. h5 {[%emt 0:00:52]} Qf7 {[%emt 0:00:57]} 28. hxg6 {[%emt 0:02:34]} hxg6 {[%emt 0:01:57]} 29. Rfg1 {[%emt 0:00:23]} Kh7 {[%emt 0:01:19]} 30. Qe1 {[%emt 0:00:57]} Rf5 {[%emt 0:08:03]} 31. Qh4 {[%emt 0:00:50]} Rh5 {[%emt 0:00:39]} 32. Qxh5 {[%emt 0:00:09]} gxh5 {[%emt 0:00:02]} 33. Rg7+ {[%emt 0:00:04]} Qxg7 {[%emt 0:00:02]} 34. Bxg7 {[%emt 0:00:04]} Rg8 {[%emt 0:01:00]} 35. Bf6 {[%emt 0:00:04]} Rxg1 {[%emt 0:00:08]} 36. Kxg1 {[%emt 0:00:01]} Kg6 {[%emt 0:00:16]} 37. b3 {[%emt 0:01:45]} Bd5 {[%emt 0:01:30]} 38. bxc4 {[%emt 0:01:25]} Bxc4 {[%emt 0:00:05]} 39. a4 {[%emt 0:00:22]} Kf5 {[%emt 0:00:35]} 40. a5 {[%emt 0:00:40]} a6 {[%emt 0:00:35]} 41. Bh4 {[%emt 0:10:26]} Kg4 {[%emt 0:02:09]} 42. Be1 {[%emt 0:02:34]} Kf3 {[%emt 0:00:30]} 43. Bh4 {[%emt 0:00:23]} Ke2 {[%emt 0:10:11]} 44. Kg2 {[%emt 0:00:57]} e3 {[%emt 0:02:19]} 45. Bg5 {[%emt 0:00:53]} Bd5+ {[%emt 0:00:15]} 46. Kg1 {[%emt 0:02:29]} h4 {[%emt 0:04:39]} 47. Kh2 {[%emt 0:01:10]} Kf2 {[%emt 0:09:01]} 48. Bxh4+ {[%emt 0:01:03]} Kf1 {[%emt 0:00:05]} 49. Kg3 {[%emt 0:00:14]} e2 {[%emt 0:00:02]} 50. Kf4 {[%emt 0:00:07]} e1=Q {[%emt 0:00:07]} 51. Bxe1 {[%emt 0:00:02]} Kxe1 {[%emt 0:00:05]} 52. Ke3 {[%emt 0:00:13]} Bc4 {[%emt 0:00:12]} 53. d5 {[%emt 0:00:09]} Bxd5 {[%emt 0:00:06]} 54. Kd4 {[%emt 0:00:28]} Kd2 {[%emt 0:00:12]} 55. c4 {[%emt 0:00:06]} Bf3 {[%emt 0:00:14]} 56. Kc5 {[%emt 0:00:19]} Be2 {[%emt 0:00:08]} 0-1

[Event "FIDE Chesscom Grand Swiss 2019"]
[Site "Douglas-Isle of Man"]
[Date "2019.10.13"]
[Round "4.24"]
[White "Movsziszian, Karen"]
[Black "Jumabayev, Rinat"]
[Result "0-1"]
[ECO "A00"]
[WhiteElo "2475"]
[BlackElo "2630"]
[Annotator "RC"]
[PlyCount "160"]
[EventDate "2019.10.10"]
[EventType "swiss"]
[EventCountry "GBR"]
[SourceTitle "playchess.com"]
[Source "ChessBase"]
[SourceQuality "1"]
[TimeControl "40/6000+30:20/3000+30:900+30"]

1. g3 {[%emt 0:00:00]} d5 {[%emt 0:00:00]} 2. Bg2 {[%emt 0:02:02]} e5 {[%emt 0:00:00]} 3. d3 {[%emt 0:00:05]} Bd6 {[%emt 0:09:00]} 4. e4 {[%emt 0:08:58]} d4 {[%emt 0:00:18]} 5. Nd2 {[%emt 0:04:19]} h5 {[%emt 0:15:01]} 6. Ngf3 {[%emt 0:06:46]} Bg4 {[%emt 0:07:54]} 7. c3 {[%emt 0:04:45]} c5 {[%emt 0:04:54]} 8. Qb3 {[%emt 0:02:07]} Bc8 {[%emt 0:07:22]} 9. Nc4 {[%emt 0:07:46]} Nc6 {[%emt 0:00:31]} 10. cxd4 {[%emt 0:06:22]} cxd4 {[%emt 0:00:10]} 11. Nxd6+ {[%emt 0:03:20]} Qxd6 {[%emt 0:00:41]} 12. O-O {[%emt 0:00:03]} Nf6 {[%emt 0:04:40]} 13. Ng5 {[%emt 0:02:02]} Qe7 {[%emt 0:02:53]} 14. h3 {[%emt 0:06:02]} Nd7 {[%emt 0:10:59]} 15. f4 {[%emt 0:00:28]} Nc5 {[%emt 0:02:57]} 16. Qa3 {[%emt 0:03:40]} Ne6 {[%emt 0:05:43]} 17. Nxe6 {[%emt 0:04:26]} Bxe6 {[%emt 0:00:22]} 18. Qxe7+ {[%emt 0:00:26]} Kxe7 {[%emt 0:00:05]} 19. f5 {[%emt 0:00:05]} Bd7 {[%emt 0:00:23]} 20. Bd2 {[%emt 0:00:02]} a5 {[%emt 0:00:30]} 21. a3 {[%emt 0:01:21]} a4 {[%emt 0:02:12]} 22. Rac1 {[%emt 0:02:40]} Ra6 {[%emt 0:01:34]} 23. Rf2 {[%emt 0:02:46]} Rb6 {[%emt 0:03:12]} 24. Bf1 {[%emt 0:03:16]} f6 {[%emt 0:01:58]} 25. Be1 {[%emt 0:03:00]} Be8 {[%emt 0:16:17]} 26. Rfc2 {[%emt 0:02:41]} Bf7 {[%emt 0:03:05]} 27. Be2 {[%emt 0:01:04]} Rb3 {[%emt 0:05:44]} 28. Rd2 {[%emt 0:05:57]} Rb5 {[%emt 0:00:10]} 29. Bd1 {[%emt 0:00:11]} Bb3 {[%emt 0:00:11]} 30. Bf3 {[%emt 0:01:30]} Kf7 {[%emt 0:00:49]} 31. Rg2 {[%emt 0:01:35]} Ke7 {[%emt 0:01:57]} 32. Kf1 {[%emt 0:01:26]} Kd7 {[%emt 0:00:40]} 33. h4 {[%emt 0:03:07]} Bf7 {[%emt 0:02:08]} 34. Bd1 {[%emt 0:00:21]} Bb3 {[%emt 0:00:09]} 35. Bf3 {[%emt 0:00:13]} Ke7 {[%emt 0:00:28]} 36. Kg1 {[%emt 0:01:18]} Bf7 {[%emt 0:00:41]} 37. Bd1 {[%emt 0:01:00]} Bb3 {[%emt 0:00:47]} 38. Bf3 {[%emt 0:00:02]} Rh7 {[%emt 0:01:06]} 39. Kf1 {[%emt 0:02:08]} Kd6 {[%emt 0:00:09]} 40. Kg1 {[%emt 0:04:36]} Kd7 {[%emt 0:01:27]} 41. Kf1 {[%emt 0:52:12]} b6 {[%emt 0:07:38]} 42. Bd2 {[%emt 0:00:00]} Kd6 {[%emt 0:04:22]} 43. Rf2 {[%emt 0:00:00]} Rh8 {[%emt 0:04:04]} 44. Be1 {[%emt 0:00:00]} Rc5 {[%emt 0:10:43]} 45. Bd2 {[%emt 0:00:00]} Rxc1+ {[%emt 0:09:42]} 46. Bxc1 {[%emt 0:00:00]} Nb8 {[%emt 0:00:04]} 47. Bd2 {[%emt 0:00:00]} Na6 {[%emt 0:00:12]} 48. Be1 {[%emt 0:00:00]} Kd7 {[%emt 0:01:44]} 49. Rd2 {[%emt 0:03:37]} Nc5 {[%emt 0:01:40]} 50. Be2 {[%emt 0:00:16]} Kc6 {[%emt 0:09:09]} 51. Kg2 {[%emt 0:00:07]} Kb7 {[%emt 0:02:51]} 52. Bf1 {[%emt 0:02:06]} Ba2 {[%emt 0:02:52]} 53. Be2 {[%emt 0:02:50]} Bb1 {[%emt 0:01:35]} 54. Rd1 {[%emt 0:00:20]} Bc2 {[%emt 0:00:01]} 55. Rd2 {[%emt 0:00:06]} Bb3 {[%emt 0:00:02]} 56. Kg1 {[%emt 0:00:27]} b5 {[%emt 0:01:29]} 57. Bf1 {[%emt 0:00:56]} Rc8 {[%emt 0:00:25]} 58. Be2 {[%emt 0:00:37]} Rh8 {[%emt 0:00:03]} 59. Kg2 {[%emt 0:01:10]} Kb6 {[%emt 0:00:18]} 60. Bf1 {[%emt 0:00:42]} Na6 {[%emt 0:00:41]} 61. Be2 {[%emt 0:22:39]} b4 {[%emt 0:15:18]} 62. Bf3 {[%emt 0:03:05]} Rc8 {[%emt 0:00:00]} 63. Bxh5 {[%emt 0:00:00]} Rc1 {[%emt 0:00:00]} 64. Kf2 {[%emt 0:00:00]} bxa3 {[%emt 0:00:00]} 65. bxa3 {[%emt 0:00:00]} Ra1 {[%emt 0:00:00]} 66. Be8 {[%emt 0:00:00]} Rxa3 {[%emt 0:00:00]} 67. Rb2 {[%emt 0:00:00]} Nc5 {[%emt 0:00:04]} 68. Ke2 {[%emt 0:00:00]} Ra1 {[%emt 0:00:11]} 69. Bb4 {[%emt 0:00:00]} Rg1 {[%emt 0:02:18]} 70. Bxc5+ {[%emt 0:02:07]} Kxc5 {[%emt 0:00:05]} 71. Kf2 {[%emt 0:00:07]} Rh1 {[%emt 0:00:25]} 72. Kg2 {[%emt 0:00:17]} Rd1 {[%emt 0:00:32]} 73. Bxa4 {[%emt 0:02:04]} Bxa4 {[%emt 0:00:05]} 74. Rb7 {[%emt 0:00:05]} Rxd3 {[%emt 0:00:17]} 75. Rxg7 {[%emt 0:00:03]} Bc6 {[%emt 0:00:33]} 76. g4 {[%emt 0:01:00]} Bxe4+ {[%emt 0:00:45]} 77. Kh2 {[%emt 0:00:19]} Rd2+ {[%emt 0:00:39]} 78. Kg3 {[%emt 0:00:11]} d3 {[%emt 0:00:15]} 79. h5 {[%emt 0:00:23]} Rg2+ {[%emt 0:00:11]} 80. Kh3 {[%emt 0:00:01]} d2 {[%emt 0:00:34]} 0-1

[Event "FIDE Chesscom Grand Swiss 2019"]
[Site "Douglas-Isle of Man"]
[Date "2019.10.13"]
[Round "4.25"]
[White "Alekseev, Evgeny"]
[Black "Erenberg, Ariel"]
[Result "1/2-1/2"]
[ECO "D32"]
[WhiteElo "2629"]
[BlackElo "2463"]
[Annotator "RC"]
[PlyCount "68"]
[EventDate "2019.10.10"]
[EventType "swiss"]
[EventCountry "GBR"]
[SourceTitle "playchess.com"]
[Source "ChessBase"]
[SourceQuality "1"]
[TimeControl "40/6000+30:20/3000+30:900+30"]

1. Nf3 {[%emt 0:03:52]} Nf6 {[%emt 0:00:00]} 2. c4 {[%emt 0:00:37]} e6 {[%emt 0:00:11]} 3. Nc3 {[%emt 0:00:46]} d5 {[%emt 0:00:12]} 4. e3 {[%emt 0:00:18]} c5 {[%emt 0:00:20]} 5. cxd5 {[%emt 0:02:40]} exd5 {[%emt 0:00:08]} 6. d4 {[%emt 0:00:45]} Nc6 {[%emt 0:01:04]} 7. Bb5 {[%emt 0:05:47]} cxd4 {[%emt 0:01:22]} 8. Nxd4 {[%emt 0:01:07]} Bd7 {[%emt 0:00:07]} 9. O-O {[%emt 0:07:30]} Bd6 {[%emt 0:00:27]} 10. Nf3 {[%emt 0:02:31]} Bg4 {[%emt 0:01:07]} 11. h3 {[%emt 0:15:14]} Bh5 {[%emt 0:00:16]} 12. Be2 {[%emt 0:01:01]} O-O {[%emt 0:00:32]} 13. b3 {[%emt 0:01:33]} a6 {[%emt 0:28:16]} 14. Bb2 {[%emt 0:05:24]} Re8 {[%emt 0:03:35]} 15. Rc1 {[%emt 0:28:28]} Bc7 {[%emt 0:16:52]} 16. Ba3 {[%emt 0:03:20]} Rc8 {[%emt 0:07:08]} 17. Nd4 {[%emt 0:03:30]} Nxd4 {[%emt 0:07:04]} 18. Bxh5 {[%emt 0:00:57]} Ne6 {[%emt 0:12:49]} 19. Bg4 {[%emt 0:01:43]} Nxg4 {[%emt 0:08:32]} 20. Qxg4 {[%emt 0:00:48]} Be5 {[%emt 0:01:27]} 21. Na4 {[%emt 0:04:51]} Rxc1 {[%emt 0:02:33]} 22. Rxc1 {[%emt 0:01:23]} d4 {[%emt 0:00:25]} 23. Rd1 {[%emt 0:03:39]} Qa5 {[%emt 0:03:40]} 24. Qe4 {[%emt 0:03:36]} dxe3 {[%emt 0:07:17]} 25. Qxe3 {[%emt 0:00:34]} h5 {[%emt 0:01:46]} 26. Qb6 {[%emt 0:04:24]} Qb5 {[%emt 0:00:22]} 27. Qxb5 {[%emt 0:04:19]} axb5 {[%emt 0:00:01]} 28. Nc5 {[%emt 0:01:37]} Ra8 {[%emt 0:01:21]} 29. Nxe6 {[%emt 0:00:34]} fxe6 {[%emt 0:00:23]} 30. Bc5 {[%emt 0:00:29]} Rxa2 {[%emt 0:00:14]} 31. g3 {[%emt 0:00:41]} Ra1 {[%emt 0:02:43]} 32. Rxa1 {[%emt 0:00:44]} Bxa1 {[%emt 0:00:02]} 33. Kg2 {[%emt 0:00:28]} e5 {[%emt 0:02:47]} 34. Kf3 {[%emt 0:00:18]} Kf7 {[%emt 0:00:29]} 1/2-1/2

[Event "FIDE Chesscom Grand Swiss 2019"]
[Site "Douglas-Isle of Man"]
[Date "2019.10.13"]
[Round "4.26"]
[White "Atalik, Ekaterina"]
[Black "Bachmann, Axel"]
[Result "0-1"]
[ECO "A04"]
[WhiteElo "2464"]
[BlackElo "2629"]
[Annotator "RC"]
[PlyCount "38"]
[EventDate "2019.10.10"]
[EventType "swiss"]
[EventCountry "GBR"]
[SourceTitle "playchess.com"]
[Source "ChessBase"]
[SourceQuality "1"]
[TimeControl "40/6000+30:20/3000+30:900+30"]

1. d4 {[%emt 0:00:00]} g6 {[%emt 0:00:31]} 2. Nf3 {[%emt 0:00:00]} Bg7 {[%emt 0:00:07]} 3. g3 {[%emt 0:00:19]} c5 {[%emt 0:02:08]} 4. Bg2 {[%emt 0:00:46]} cxd4 {[%emt 0:00:30]} 5. Nxd4 {[%emt 0:00:14]} Nc6 {[%emt 0:00:05]} 6. Nb3 {[%emt 0:00:58]} Nf6 {[%emt 0:00:11]} 7. Nc3 {[%emt 0:01:47]} d6 {[%emt 0:01:08]} 8. O-O {[%emt 0:00:56]} O-O {[%emt 0:00:12]} 9. h3 {[%emt 0:02:06]} Rb8 {[%emt 0:07:16]} 10. e4 {[%emt 0:01:42]} b5 {[%emt 0:04:16]} 11. Be3 {[%emt 0:03:26]} a6 {[%emt 0:22:00]} 12. Re1 {[%emt 0:09:32]} Bb7 {[%emt 0:05:29]} 13. Nd5 {[%emt 0:13:01]} Nd7 {[%emt 0:02:59]} 14. Qc1 {[%emt 0:07:30]} e6 {[%emt 0:01:12]} 15. Nc3 {[%emt 0:02:45]} Nce5 {[%emt 0:08:23]} 16. Bh6 {[%emt 0:09:14]} Bxh6 {[%emt 0:19:37]} 17. Qxh6 {[%emt 0:00:05]} Qb6 {[%emt 0:00:44]} 18. Ne2 {[%emt 0:07:42]} f5 {[%emt 0:02:24]} 19. Nf4 {[%emt 0:07:44]} Nf7 {[%emt 0:00:44]} 0-1

[Event "FIDE Chesscom Grand Swiss 2019"]
[Site "Douglas-Isle of Man"]
[Date "2019.10.13"]
[Round "4.27"]
[White "Iturrizaga Bonelli, Eduardo"]
[Black "Saduakassova, Dinara"]
[Result "0-1"]
[ECO "E32"]
[WhiteElo "2629"]
[BlackElo "2481"]
[Annotator "RC"]
[PlyCount "72"]
[EventDate "2019.10.10"]
[EventType "swiss"]
[EventCountry "GBR"]
[SourceTitle "playchess.com"]
[Source "ChessBase"]
[SourceQuality "1"]
[TimeControl "40/6000+30:20/3000+30:900+30"]

1. c4 {[%emt 0:07:12]} Nf6 {[%emt 0:00:00]} 2. Nc3 {[%emt 0:01:06]} e6 {[%emt 0:00:00]} 3. Nf3 {[%emt 0:00:28]} Bb4 {[%emt 0:00:00]} 4. Qc2 {[%emt 0:00:40]} O-O {[%emt 0:02:13]} 5. g3 {[%emt 0:01:09]} d6 {[%emt 0:10:20]} 6. d4 {[%emt 0:02:24]} Re8 {[%emt 0:06:03]} 7. Bg2 {[%emt 0:02:21]} e5 {[%emt 0:03:32]} 8. dxe5 {[%emt 0:07:55]} dxe5 {[%emt 0:00:10]} 9. O-O {[%emt 0:00:05]} h6 {[%emt 0:08:36]} 10. Rd1 {[%emt 0:05:47]} Qe7 {[%emt 0:01:54]} 11. Bd2 {[%emt 0:42:51]} e4 {[%emt 0:11:52]} 12. Nd4 {[%emt 0:02:15]} c5 {[%emt 0:02:03]} 13. Nb3 {[%emt 0:00:05]} Na6 {[%emt 0:09:39]} 14. Bf4 {[%emt 0:06:56]} Bxc3 {[%emt 0:00:57]} 15. Qxc3 {[%emt 0:07:34]} b6 {[%emt 0:05:09]} 16. Rd2 {[%emt 0:09:26]} Bf5 {[%emt 0:02:57]} 17. Rad1 {[%emt 0:01:47]} Nb4 {[%emt 0:05:16]} 18. a3 {[%emt 0:00:08]} Nc6 {[%emt 0:00:18]} 19. Na1 {[%emt 0:03:36]} Rad8 {[%emt 0:05:36]} 20. Nc2 {[%emt 0:02:08]} Rxd2 {[%emt 0:05:36]} 21. Rxd2 {[%emt 0:00:03]} Rd8 {[%emt 0:01:01]} 22. b4 {[%emt 0:03:29]} Rxd2 {[%emt 0:02:46]} 23. Bxd2 {[%emt 0:00:26]} Bg4 {[%emt 0:01:54]} 24. Bf1 {[%emt 0:01:28]} Qe5 {[%emt 0:03:25]} 25. b5 {[%emt 0:00:39]} Nd4 {[%emt 0:02:18]} 26. Nxd4 {[%emt 0:00:13]} cxd4 {[%emt 0:00:04]} 27. Qb2 {[%emt 0:00:47]} Qc5 {[%emt 0:01:29]} 28. Qb4 {[%emt 0:00:32]} Nd7 {[%emt 0:00:53]} 29. Bg2 {[%emt 0:00:28]} Bxe2 {[%emt 0:00:53]} 30. Bxe4 {[%emt 0:00:14]} Qxb4 {[%emt 0:02:57]} 31. axb4 {[%emt 0:00:06]} Bxc4 {[%emt 0:00:25]} 32. Bc6 {[%emt 0:00:05]} Ne5 {[%emt 0:02:40]} 33. f4 {[%emt 0:00:02]} Ng4 {[%emt 0:01:12]} 34. Kg2 {[%emt 0:01:18]} Ne3+ {[%emt 0:03:09]} 35. Kf3 {[%emt 0:00:21]} Nf1 {[%emt 0:00:17]} 36. Bc1 {[%emt 0:00:44]} d3 {[%emt 0:00:23]} 0-1